Cogmind - Beta 17.1 @@@ ROGUE MODE // 2026.09.07 @ 07:23:46 Player: Zetadar Result: Destroyed by S-10 Pest with Light Assault Rifle Performance ------------- Evolutions (0) 0 Regions Visited (2) 400 Robots Destroyed (27) 135 Value Destroyed (548) 548 Prototype IDs (0) 0 Alien Tech Used (0) 0 Bonus (0) 0 TOTAL SCORE: 1083 Bonus ------- None Cogmind --------- Core Integrity 0/250 Matter 295/300 Energy 100/100 System Corruption 0% Temperature Cool (0) Movement Rolling (80) Location -10/Mines Parts ------- > --- POWER (1) -------- (None) > --- PROPULSION (2) --- Wheel > --- UTILITY (2) ------ Signal Interpreter Light Armor Plating > --- WEAPON (2) ------- Mining Claw > --- INVENTORY (5) ---- Light Ion Engine Light Ion Engine Peak State ------------ > --- POWER ------------ Light Ion Engine > --- PROPULSION ------- Wheel Compact Wheel > --- UTILITY ---------- Signal Interpreter Improved Terrain Scanner > --- WEAPON ----------- Grenade Launcher Mining Claw > --- INVENTORY -------- Light Ion Engine Light Armor Plating [Rating: 9] Favorites ----------- Power Light Ion Engine Engine Light Ion Engine Propulsion Compact Wheel Wheel Compact Wheel Utility Signal Interpreter Device Improved Terrain Scanner Processor Signal Interpreter Protection Light Armor Plating Weapon Grenade Launcher Ballistic Gun Assault Rifle Launcher Grenade Launcher Slashing Weapon Mining Claw Build | -11 -10 -10 ------- Run | Yrd Mat Min Slots Evolved . | . . . Power . | . . . Propulsion . | . . . Utility . | . . . Weapon . | . . . Parts Attached 17 | 5 5 7 Power 3 | 1 1 1 Engine 3 | 1 1 1 Core . | . . . Reactor . | . . . Propulsion 5 | 2 . 3 Treads . | . . . Leg . | . . . Wheel 5 | 2 . 3 Hover . | . . . Flight . | . . . Utility 4 | . 2 2 Device 1 | . . 1 Storage . | . . . Processor 2 | . 1 1 Hackware . | . . . Protection 1 | . 1 . Artifact . | . . . Weapon 5 | 2 2 1 Energy Gun . | . . . Energy Cannon . | . . . Ballistic Gun 2 | 2 . . Ballistic Cannon . | . . . Launcher 2 | . 2 . Special Weapon . | . . . Impact Weapon . | . . . Slashing Weapon 1 | . . 1 Piercing Weapon . | . . . Special Melee Weapon . | . . . Unidentified Prototypes . | . . . Parts Lost 8 | . 3 5 Power 2 | . 1 1 Propulsion 2 | . . 2 Utility 1 | . . 1 Weapon 3 | . 2 1 Highest Loss Streak 3 | . 3 3 To Critical Strikes . | . . . Average Backups 2 | 1 2 2 Power . | . . . Propulsion . | . . . Utility . | . . . Weapon . | . 1 . Tool/Special . | . . . Unused Backups 1 | . . 1 Power 1 | . . 1 Propulsion . | . . . Utility . | . . . Weapon . | . . . Tool/Special . | . . . Average Slot Usage (%) 90 | . 76 95 Engine 13 | . 12 13 Wheel 26 | . 28 26 Device 3 | . . 4 Processor 17 | . 7 21 Protection 2 | . . 2 Ballistic Gun 5 | . 15 2 Launcher 11 | . 10 11 Slashing Weapon 8 | . . 11 Peak Build Rating 9 | 5 7 9 Average Rating 6 | 3 5 7 On Entrance 4 | . 5 7 Avg Prop Armor Cover (%) . | . . . Naked Turns . | . . . Heaviest Build 11 | 7 11 11 Greatest Support 32 | 32 32 32 Greatest Overweight (x) . | . . . Average Overweight (x) . | . . . Largest Inventory Capacity 5 | 5 5 5 Average Capacity 5 | 5 5 5 Most Carried 4 | 3 3 4 Average Carried 2 | 1 2 2 Final Capacity 5 | 5 5 5 Final Carried 2 | 1 1 2 Class Distribution -------------------- 88% | Mutant 11% | Scavenger-Mutant Dominant Class ---------------- Mutant | -10/Materials Mutant | -10/Mines Resources | -11 -10 -10 ----------- Run | Yrd Mat Min Matter Collected 544 | 181 25 338 Remotely . | . . . Salvage Created 567 | . 192 375 Parts 45 | . 12 33 Haulers Intercepted . | . . . Recyclers Shooed 1 | . 1 . Parts Field Recycled . | . . . Retrieved Matter . | . . . Parts Self-Destructed . | . . . Prevented . | . . . Parts Restored . | . . . Kills | -11 -10 -10 ------- Run | Yrd Mat Min Combat Hostiles Destroyed 22 | . 7 15 Melee 9 | . . 9 Guns 2 | . 1 1 AOE 11 | . 6 5 Classes Destroyed 8 | . 5 3 Worker 1 | . . 1 Builder 1 | . 1 . Tunneler 2 | . . 2 Recycler 1 | . 1 . Watcher 1 | . 1 . Swarmer 11 | . 3 8 Grunt 10 | . 4 6 Assembled 1 | . . 1 Best Kill Streak 7 | . 6 7 Combat Bots Only 6 | . 4 6 Max Kills in Single Turn 2 | . 2 2 Gunslinging . | . . . Exploded 2 | . 2 2 Melee 1 | . . 1 Uniques/NPCs Destroyed . | . . . Combat | -11 -10 -10 -------- Run | Yrd Mat Min Hostile Shots Fired 125 | . 47 78 Missed 43 | . 16 27 Hits 82 | . 31 51 Melee 2 | . . 2 Projectile 80 | . 31 49 Damage Taken 941 | . 389 552 Core 257 | . 68 189 Absorbed by Shields . | . . . Core Remaining (%) 100 | 100 . . Volleys Fired 24 | . 17 7 Largest 2 | . 2 1 Hottest 40 | . 40 30 Shots Fired 28 | . 21 7 Gun 13 | . 9 4 Cannon . | . . . Launcher 15 | . 12 3 Special . | . . . Kinetic 13 | . 9 4 Thermal . | . . . Explosive 15 | . 12 3 Electromagnetic . | . . . Robot Hit Streak 3 | . 3 3 Robot Miss Streak 4 | . 4 2 Penetration Max . | . . . Secondary Targets . | . . . Shots Hit Robots 37 | . 6 31 Core Hits 39 | . 19 20 Critical Kills . | . . . Critical Parts Destroyed . | . . . Critical Strikes . | . . . Melee Attacks 43 | . . 43 Impact . | . . . Slashing 43 | . . 43 Piercing . | . . . Sneak Attacks 7 | . . 7 Combat Hostiles . | . . . Follow-up Attacks . | . . . Damage Inflicted 1720 | . 737 983 Guns 64 | . 30 34 Cannons . | . . . Explosions 926 | . 707 219 Melee 730 | . . 730 Ramming . | . . . Kinetic 64 | . 30 34 Thermal . | . . . Explosive 926 | . 707 219 Electromagnetic . | . . . Impact . | . . . Slashing 730 | . . 730 Piercing . | . . . Highest Corruption . | . . . Average Corruption . | . . . Corruption Purged . | . . . Corruption Blocked . | . . . Overload Shots . | . . . Overflow Damage 50 | . . 50 Projectiles . | . . . Explosions . | . . . Melee 50 | . . 50 Knockbacks . | . . . Impact . | . . . Kinetic . | . . . Secondary . | . . . Self-Inflicted Damage 77 | . 72 5 Shots 4 | . 3 1 Rammed . | . . . Targets Rammed . | . . . Kicked . | . . . Crushed . | . . . Highest Temperature 10 | . 10 . Average Temperature 4 | . 4 . Received Heat Transfer 258 | . 129 129 Siege Activations . | . . . Martial Activations . | . . . Shielding Activations . | . . . Robots Disrupted . | . . . Combat Hostiles . | . . . Robots Corrupted . | . . . Combat Hostiles . | . . . Parts Fried . | . . . Impact Corruptions . | . . . Robots Melted . | . . . Combat Hostiles . | . . . Parts Melted . | . . . Heat Transferred . | . . . Parts Sabotaged . | . . . Parts Stolen . | . . . Parts Stripped . | . . . Power Chain Reactions . | . . . Alert | -11 -10 -10 ------- Run | Yrd Mat Min Maximum Alert Level 1 | . 1 1 Low Security (%) 91 | 100 87 91 Level 1 8 | . 12 8 Level 2 . | . . . Level 3 . | . . . Level 4 . | . . . Level 5 . | . . . High Security . | . . . Max Security . | . . . Peak Influence 229 | . 223 229 Initial 85 | . . 85 Average 116 | . 54 147 Influence Increases 717 | . 291 426 Destroy 0b10 Robot/C 420 | . 140 280 Destroy 0b10 Robot/NC 30 | . 15 15 Destroy Leader 72 | . 32 40 Disable Machine 45 | . 45 . Destroy Structure 75 | . 59 16 Lose Combat Pursuer 75 | . . 75 Influence Decreases 534 | . 70 464 Entered New Map 136 | . . 136 Time Decay 318 | . 40 278 Lost Part 80 | . 30 50 Squads Dispatched 2 | . 2 . Investigation 1 | . 1 . Extermination . | . . . Reinforcement 1 | . 1 . Assault . | . . . Garrison . | . . . Intercept . | . . . Searches Triggered . | . . . Construction Impeded . | . . . Haulers Reinforced . | . . . Active Scanning Responses . | . . . Cargo Convoy Interrupts . | . . . Stealth | -11 -10 -10 --------- Run | Yrd Mat Min Distress Signals 1 | . 1 . Communications Jammed . | . . . Distress Signals . | . . . Times Spotted 27 | . 9 18 Peak Tracking Total 4 | . 4 3 Tactical Retreats 4 | . . 4 Traps | -11 -10 -10 ------- Run | Yrd Mat Min Traps Triggered 1 | . 1 . Indirectly . | . . . Trap Hack Attempts . | . . . Triggered . | . . . Disarmed . | . . . Reprogrammed . | . . . Reused . | . . . Traps Extracted . | . . . Installed . | . . . Triggered . | . . . Machines | -11 -10 -10 ---------- Run | Yrd Mat Min Machines Disabled 3 | . 3 . Max in Single Turn 2 | . 2 . Machines Repaired . | . . . Machines Dismantled . | . . . Machines Sabotaged . | . . . Overloaded Fab Kills . | . . . Hacking | -11 -10 -10 --------- Run | Yrd Mat Min Machines Accessed . | . . . Terminals . | . . . Fabricators . | . . . Repair Stations . | . . . Recycling Units . | . . . Scanalyzers . | . . . Garrison Access . | . . . Total Hacks . | . . . Successful . | . . . Failed . | . . . Catastrophic . | . . . Database Lockouts . | . . . Manual . | . . . Terminals . | . . . Fabricators . | . . . Repair Stations . | . . . Recycling Units . | . . . Scanalyzers . | . . . Garrison Access . | . . . Terminal Hacks . | . . . Fabricator Hacks . | . . . Repair Station Hacks . | . . . Recycling Unit Hacks . | . . . Scanalyzer . | . . . Garrison Access Hacks . | . . . Unauthorized Hacks . | . . . Terminals . | . . . Fabricators . | . . . Repair Stations . | . . . Recycling Units . | . . . Scanalyzers . | . . . Garrison Access . | . . . Data Cores Recovered . | . . . Used . | . . . Hacking Detections . | . . . Full Trace Events . | . . . Feedback Events . | . . . Feedback Blocked . | . . . Robot Schematics Acquired . | . . . Robots Built . | . . . Authchips . | . . . Time . | . . . Total Robot Build Rating . | . . . Part Schematics Acquired . | . . . Parts Built . | . . . Authchips . | . . . Time . | . . . Total Part Build Rating . | . . . Part Studies Acquired . | . . . Parts Repaired . | . . . Time . | . . . Parts Recycled . | . . . Recycled Matter . | . . . Retrieved Matter . | . . . Retrieved Components . | . . . Parts Scanalyzed . | . . . Part Schematics Acquired . | . . . Parts Damaged . | . . . Bothacking | -11 -10 -10 ------------ Run | Yrd Mat Min Used RIF Installer . | . . . Robots Hacked . | . . . Non-combat . | . . . Combat . | . . . Robot Hacks Applied . | . . . Relay Couplers Released . | . . . Fabnet Peak Effective % . | . . . Robots Rewired . | . . . Allies Hacked . | . . . Hacks Repelled . | . . . Allies | -11 -10 -10 -------- Run | Yrd Mat Min Total Allies . | . . . Largest Group . | . . . Highest-Rated Group . | . . . Highest-Rated Ally . | . . . Total Orders . | . . . Ally Attacks . | . . . Total Damage . | . . . Kills . | . . . Allies Corrupted . | . . . Allies Melted . | . . . Intel | -11 -10 -10 ------- Run | Yrd Mat Min Active Infowar (turns) 189 | . . 189 Terrain 189 | . . 189 Robot Analysis Total . | . . . Derelict Logs Recovered 1 | . . 1 Drone Launches . | . . . Drone Recoveries . | . . . Exploration | -11 -10 -10 ------------- Run | Yrd Mat Min Turns Passed 869 | 47 211 611 Spaces Moved 697 | 39 162 496 Core 5 | 5 . . Treads . | . . . Legs . | . . . Wheels 692 | 34 162 496 Hover . | . . . Flight . | . . . Fastest Speed 50 | 50 100 80 Average Speed 91 | 93 100 88 Slowest Speed 100 | 100 100 100 Overloaded Moves . | . . . Propulsion Burnouts . | . . . Robots Hopped . | . . . Potential Cave-ins . | . . . Cave-ins Triggered . | . . . Exploration Rate (%) 49 | 3 52 92 Regions Visited 2 Branch Regions 1 Pre-discovered Areas 1 | . . 1 Known Exits Taken 1 | . 1 . Unknown Exits Taken 1 | 1 . . Scrap Searched 1 | . . 1 Spaces Dug 2 | . . 2 Terrain Destroyed 73 | . 57 16 Melee 2 | . . 2 Projectile . | . . . AOE 71 | . 57 14 Terrain Rammed . | . . . Walls Destroyed . | . . . Machines Disabled . | . . . Actions | -11 -10 -10 --------- Run | Yrd Mat Min Total 810 | 49 189 572 Wait 9 | . . 9 Move 695 | 38 161 496 Hop . | . . . Pick Up 16 | 6 5 5 Fast Attach . | . . . Attach 13 | 5 5 3 Detach . | . . . Swap 6 | . 1 5 Drop 4 | . . 4 Fire 24 | . 17 7 Melee 43 | . . 43 Ram . | . . . Kick . | . . . Crush . | . . . Escape Stasis . | . . . Rewire . | . . . Trap . | . . . Miscellaneous . | . . . Route ------- -11/Scrapyard -10/Materials -10/Mines (discovered 2 exits: *Mat x2) History --------- Turn | Location | Event 14 | -11/Scrapyard | Discovered new exit (range 15) 48 | -11/Scrapyard | Entered Materials 234 | -10/Materials | Discovered new exit (range 16) 240 | -10/Materials | Lost 3 parts (1p2w) 258 | -10/Materials | Identified exit to Mines 259 | -10/Materials | Entered Mines 294 | -10/Mines | Discovered new exit (range 10) 301 | -10/Mines | Identified exit to Materials 306 | -10/Mines | Build established: Mutant 397 | -10/Mines | Found a hidden stash of uninstalled traps 553 | -10/Mines | Excavation squad dispatched 553 | -10/Mines | A large section of the Mines collapsed 556 | -10/Mines | Core integrity fell below 50% 736 | -10/Mines | Discovered exit to Materials (range 7) 765 | -10/Mines | Core integrity fell below 20% 870 | -10/Mines | Destroyed by S-10 Pest with Light Assault Rifle Last Messages --------------- Dropped Com. Wheel. Acquired 10 matter. K-01 Serf collects debris. G-34 Mercenary destroyed. Sneak attack on T-07 Excavator. T-07 Excavator Wheel ripped off. Destroyed Flight Unit. S-10 Pest destroyed. EXIT=FOUND: MATERIALS G-34 Mercenary destroyed. Grenade Launcher destroyed. Wheel destroyed. G-47 Trooper destroyed. K-01 Serf collects debris. Imp. Terrain Scanner destroyed. Destroyed Flight Unit. S-10 Pest Lgt. Ion Engine ripped off. Ion Engine destroyed. S-10 Pest destroyed. Wheel destroyed. Map ----- +----------------------------------------------------+ | ! ! """ """ ## ## ## #### ##???? | | ####### """ """??# ### ???# #??# #????? | | ##????????? ??# #???#### #??# #????? | | #???????????? ??# #???# #?? #????? | | ?????????????# #??# #???# ## #??###????? | | ?????????????# #??# ###?#??# #??#??????? | | ??????#??????# #??# ##??## ## #??????? | | ???????????### #?## ## ## #??????? | | #?????????## ### ## ####??????? | | ??????????# #???# #?????????? | | #??######## #???# #?????????? | | #?#?# #???# #??###????? | | ???## ## ### #???# ### #????? | | ???????# #?# ##???# #?????? | | ??????## #?## ###### #####?????? | | ???????# #??## #?????????? | | ???????# #?#?##### ####### #?????????? | | ###????#!#???????## ##?????# #?????????? | | ## #????????# #??????# #?????????? | | ###????#|#????????# #??????# #?????????? | | ???#???# #????????# ######?# #?????????? | | ???????# #????????# #?# #?????????? | | ######## #????????###### #?# #?#???????? | | # #?????????????# #?? ##??????? | | # ########?????????????#%## #??????? | | # #????????????????????#=@ s #??????? | | # ##???????????????????#### #??????? | | # #????????????????????????? ##??????? | | #??#?#????????????????????####???????? | | ###???????????#????????????????????????? | | ???????????????????????????????????????? | | ????#??????????????????????????????????? | | ???????????????#???????????????????????? | | ???????????????????????????????????????? | | ???????????????????????????????????????? | | ???????????????????????????????????????? | | | | | | | | | | | | | | | | | | | | | | | | | | | | | +----------------------------------------------------+ Best States ------------- Heat Dissipation 25 Energy Generation 10 Energy Capacity 250 Matter Stores 300 Matter Capacity 300 Sight Range 16 Terrain Scan Range 16 Terrain Scan Density 10 Armor Coverage 150 Evasion (%) 44 Targeting Accuracy 5 Item Schematics ----------------- None Robot Schematics ------------------ None Fabricated ------------ Nothing Repaired ---------- Nothing Studied --------- None Alien Tech Used ----------------- None Achievements -------------- None Challenges ------------ None Game ------ Seed CloakGravitonShearcannon Manual? 0 Play Time 00:16:36 Cumulative 7.3 hours Start 2026.09.07 @ 07:07:05 End 2026.09.07 @ 07:23:46 Sessions 1 Manual Loads 0 Difficulty Rogue Special Mode None Game No. 12 Rogue 12 Adventurer 0 Explorer 0 Win Type - Total 0 Types 0/0/0/0/0/0/0/0/0/0 Lore% 4 Gallery% 10 Achievement% 10 Wizard Run 0 Options --------- Layout 0 ASCII 0 Keyboard 0 Movement Mouse Keybinds 0 Fullscreen 2 Font 18/SmallcapsGlow Map View 76x50 Zoom Use 0% Tactical HUD 0 Map Filters NONE Filters NONE Steam 1 RUN: a10d9c59-d759-4ddf-ab78-258105b5d5e5